bitfinex/quotes_SOLUSD_20260213
["timestamp","ask_amount","ask_price","bid_price","bid_amount"]
[1771001235362,11.83156463,84.52,84.492,1.46071775]
[1771001235665,11.83061581,84.527,84.501,1.46071775]
[1771001237062,10.38580651,84.53,84.503,1.46071775]
[1771001237365,1.45426632,84.528,84.493,1.46071775]
[1771001237573,10.38580651,84.52,84.494,1.46071775]
[1771001237758,10.38580651,84.52,84.485,1.46071775]
[1771001237759,1.45426632,84.519,84.485,1.46071775]
[1771001237964,1.45426632,84.509,84.486,39.16]
[1771001238166,1.45426632,84.509,84.486,50.99628056]
[1771001238359,1.45426632,84.517,84.491,1.46071775]
[1771001238670,11.83165915,84.519,84.491,1.46071775]
[1771001238977,1.45426632,84.518,84.486,50.99628056]
[1771001239182,1.45426632,84.518,84.486,39.16]
[1771001239480,1.45426632,84.499,84.468,11.83866986]
[1771001239857,10.38580651,84.49,84.467,39.18]
[1771001240079,11.84007283,84.49,84.467,51.0189263]
[1771001240687,1.45426632,84.49,84.467,39.18]
[1771001241557,11.83586028,84.489,84.467,39.18]
[1771001241758,10.38580651,84.51,84.481,1.46071775]
[1771001242080,1.45426632,84.509,84.481,1.46071775]
[1771001242498,10.38580651,84.5,84.476,11.83755629]
[1771001242683,10.38580651,84.49,84.46,10.38580651]
[1771001242881,10.38580651,84.48,84.455,39.22]
[1771001243095,10.38580651,84.48,84.456,1.46071775]
[1771001243298,1.45426632,84.479,84.449,11.84140194]
[1771001243465,1.45426632,84.479,84.449,51.06140194]
[1771001244193,1.45426632,84.469,84.449,39.22]
[1771001244493,23.68006418,84.46,84.44,0.1]
[1771001244693,10.38580651,84.46,84.44,0.1]
[1771001245002,11.84007283,84.46,84.44,0.1]
[1771001245567,10.38580651,84.46,84.44,0.1]
[1771001245764,1.45426632,84.469,84.44,1.56071775]
[1771001245973,13.29298625,84.469,84.44,1.56071775]
[1771001246387,1.45426632,84.468,84.44,1.56071775]
[1771001247076,1.45426632,84.466,84.44,0.1]
[1771001247388,10.38580651,84.46,84.44,0.1]
[1771001248484,11.84007283,84.46,84.44,0.1]
[1771001248686,1.45426632,84.458,84.44,0.1]
[1771001249090,1.45426632,84.449,84.42,0.1]
[1771001249275,1.45426632,84.435,84.42,0.1]
[1771001249786,10.38580651,84.45,84.42,13.40612846]
[1771001250000,10.38580651,84.45,84.421,1.46071775]
[1771001250369,10.38580651,84.44,84.421,1.46071775]
[1771001250573,10.38580651,84.44,84.42,0.1]
[1771001251300,10.38580651,84.44,84.42,11.94552738]
[1771001251505,10.38580651,84.44,84.42,0.1]
[1771001251668,1.51445254,84.439,84.42,0.1]
[1771001252476,13.35732135,84.439,84.42,0.1]
[1771001253388,10.38580651,84.44,84.42,0.1]
[1771001253389,1.51445254,84.437,84.42,0.1]
[1771001254976,10.38580651,84.43,84.42,0.1]
[1771001255194,1.51445254,84.429,84.4,1.67175724]
[1771001255488,10.38580651,84.42,84.4,1.67175724]
[1771001255788,1.51445254,84.429,84.4,1.67175724]
[1771001256994,1.51445254,84.427,84.4,1.67175724]
[1771001257490,10.38580651,84.42,84.4,1.67175724]
[1771001257791,1.47112249,84.419,84.4,0.2]
[1771001258092,1.47112249,84.439,84.401,1.51180877]
[1771001258287,10.38580651,84.43,84.401,1.51180877]
[1771001258970,11.84427151,84.429,84.401,1.51180877]
[1771001259172,1.47112249,84.428,84.4,0.2]
[1771001259369,10.38580651,84.42,84.4,1.71180877]
[1771001259890,11.856929,84.42,84.4,0.2]
[1771001260185,1.47112249,84.419,84.4,0.2]
[1771001260392,10.38580651,84.42,84.4,0.2]
[1771001260773,1.47112249,84.427,84.4,1.71180877]
[1771001260975,11.84567455,84.419,84.4,1.71180877]
[1771001261178,11.84567455,84.419,84.4,0.2]
[1771001262080,10.38580651,84.42,84.401,1.51180877]
[1771001262392,11.856929,84.43,84.401,1.51180877]
[1771001262692,1.47112249,84.429,84.401,1.51180877]
[1771001263277,10.38580651,84.42,84.4,0.2]
[1771001263477,1.47112249,84.419,84.4,0.2]
[1771001264198,10.38580651,84.41,84.39,0.1]
[1771001264377,1.47112249,84.409,84.39,0.1]
[1771001265078,1.47112249,84.399,84.371,1.51180877]
[1771001265689,10.38580651,84.4,84.37,0.1]
[1771001265690,1.47112249,84.397,84.37,0.1]
[1771001266296,1.47112249,84.397,84.37,1.61180877]
[1771001266674,11.84808931,84.402,84.371,11.85241374]
[1771001266876,11.84808931,84.402,84.372,1.51180877]
[1771001267075,13.3192118,84.402,84.372,1.51180877]
[1771001267270,1.47112249,84.408,84.381,1.51180877]
[1771001267480,44.04,84.415,84.381,1.51180877]
[1771001267481,22.23285557,84.41,84.381,1.51180877]
[1771001267706,55.88627777,84.415,84.383,1.51180877]
[1771001267884,10.38580651,84.41,84.383,1.51180877]
[1771001268587,10.38580651,84.41,84.371,29.63103436]
[1771001268588,1.47112249,84.399,84.372,39.38]
[1771001268783,1.47112249,84.399,84.373,1.51180877]
[1771001269090,1.47112249,84.407,84.373,1.51180877]
[1771001269290,10.38580651,84.41,84.373,1.51180877]
[1771001269598,10.38580651,84.41,84.372,39.38]
[1771001269599,10.38580651,84.42,84.391,1.51180877]
[1771001270274,22.2314319,84.42,84.393,1.51180877]
[1771001270474,11.84562539,84.42,84.393,1.51180877]
[1771001270675,11.84498309,84.424,84.393,1.51180877]
[1771001270874,10.38580651,84.42,84.393,1.51180877]
[1771001271488,44.06,84.442,84.393,1.51180877]
[1771001271489,10.38580651,84.43,84.393,1.51180877]
[1771001271690,1.47112249,84.436,84.392,11.8494644]
[1771001271691,11.84342985,84.435,84.401,1.51180877]
[1771001271880,10.38580651,84.43,84.401,1.51180877]
[1771001272299,11.84342985,84.435,84.403,1.51180877]
[1771001272480,1.47112249,84.434,84.403,1.51180877]
[1771001272874,10.38580651,84.43,84.403,1.51180877]
[1771001273295,11.84371039,84.433,84.403,1.51180877]
[1771001273679,11.84371039,84.433,84.402,11.84806047]
[1771001273680,11.84371039,84.433,84.405,1.51180877]
[1771001273881,10.38580651,84.43,84.405,1.51180877]
[1771001274095,11.84322518,84.437,84.405,1.51180877]
[1771001274297,11.84342985,84.566,84.404,11.84777972]
[1771001274298,1.47112249,84.483,84.43,10.38580651]
[1771001274478,1.47112249,84.483,84.441,1.51180877]
[1771001274479,10.38580651,84.47,84.441,1.51180877]
[1771001274677,11.83670087,84.483,84.43,40.93180877]
[1771001274678,1.47112249,84.459,84.43,40.93180877]
[1771001274885,44.08,84.477,84.441,1.51180877]
[1771001274886,3.88308739,84.47,84.441,1.51180877]
[1771001275097,1.47112249,84.484,84.451,1.51180877]
[1771001275283,1.47112249,84.484,84.43,39.42]
[1771001275284,3.88308739,84.49,84.461,1.51180877]
[1771001275483,1.47112249,84.493,84.463,1.51180877]
[1771001275686,11.83544004,84.492,84.463,1.51180877]
[1771001275986,3.88308739,84.49,84.463,1.51180877]
[1771001276182,1.47112249,84.489,84.463,1.51180877]
[1771001277402,11.83544004,84.492,84.463,1.51180877]
[1771001277703,23.70175864,84.5,84.471,1.51180877]
[1771001278305,1.47112249,84.499,84.471,1.51180877]
[1771001279005,11.83459963,84.498,84.471,1.51180877]
[1771001279307,1.47112249,84.497,84.463,11.83938445]
[1771001279684,1.47112249,84.497,84.464,1.51180877]
[1771001281006,1.42767644,84.495,84.464,1.51180877]
[1771001281202,10.39622259,84.49,84.464,1.51180877]
[1771001281409,1.42767644,84.489,84.464,1.51180877]
[1771001281606,1.42767644,84.489,84.457,39.46]
[1771001281804,1.42767644,84.489,84.458,1.49975763]
[1771001282292,11.83487975,84.496,84.461,1.49975763]
[1771001282484,1.42767644,84.496,84.461,1.49975763]
[1771001282985,1.42767644,84.496,84.471,1.49975763]
[1771001283686,1.42767644,84.496,84.463,1.49975763]
[1771001283687,1.42767644,84.495,84.463,1.49975763]
[1771001284508,1.42767644,84.489,84.458,1.49975763]
[1771001284800,1.42767644,84.504,84.471,1.49975763]
[1771001285107,1.42767644,84.489,84.461,1.49975763]
[1771001285404,10.39622259,84.49,84.461,1.49975763]
[1771001285703,1.42767644,84.497,84.463,1.49975763]
[1771001286107,1.42767644,84.489,84.463,1.49975763]
[1771001287693,10.39622259,84.49,84.457,39.5]
[1771001287694,1.42767644,84.487,84.457,39.5]
[1771001287891,1.42767644,84.487,84.459,1.49975763]
[1771001288790,1.42767644,84.479,84.453,51.36081383]
[1771001288990,1.42767644,84.479,84.454,1.49975763]
[1771001289188,1.42767644,84.469,84.445,1.49975763]
[1771001289400,1.42767644,84.476,84.445,1.49975763]
[1771001289603,10.39622259,84.48,84.451,1.49975763]
[1771001289890,11.83726133,84.479,84.453,1.49975763]
[1771001290511,10.39622259,84.48,84.453,1.49975763]
[1771001290702,11.83597003,84.489,84.453,1.49975763]
[1771001291104,1.42767644,84.488,84.453,1.49975763]
[1771001291304,11.83597003,84.489,84.444,1.49975763]
[1771001291305,10.39729122,84.47,84.444,1.49975763]
[1771001291520,1.42767644,84.459,84.389,1.49975763]
[1771001291818,1.42767644,84.457,84.423,1.49975763]
[1771001292190,10.39729122,84.44,84.415,1.49975763]
[1771001292391,1.42767644,84.449,84.42,10.39729122]
[1771001292635,11.84020459,84.458,84.431,1.49975763]
[1771001293219,11.82496766,84.46,84.431,1.49975763]
[1771001293220,1.42767644,84.46,84.431,1.49975763]
[1771001293421,1.42767644,84.459,84.431,1.49975763]
[1771001293592,1.42767644,84.449,84.42,10.39729122]
[1771001293793,1.42767644,84.449,84.417,1.49975763]
[1771001294004,1.42767644,84.449,84.419,1.49975763]
[1771001294816,10.39729122,84.44,84.416,1.49975763]
[1771001295032,11.82496766,84.44,84.416,1.49975763]
[1771001296398,1.42767644,84.44,84.417,11.84595519]
[1771001296732,1.42767644,84.44,84.407,29.61836391]
[1771001296733,1.42767644,84.429,84.4,1.49975763]
[1771001297028,11.84286881,84.439,84.372,1.49975763]
[1771001297029,1.42767644,84.409,84.372,1.49975763]
[1771001297197,1.42767644,84.409,84.373,1.49975763]
[1771001297728,1.42767644,84.399,84.373,1.49975763]
[1771001297905,1.42767644,84.399,84.37,0.1]
[1771001298301,1.42767644,84.388,84.37,0.1]
[1771001298817,11.84924028,84.394,84.37,0.1]
[1771001299122,1.42767644,84.379,84.36,0.1]
[1771001299314,10.39729122,84.37,84.345,1.49975763]
[1771001299819,1.42767644,84.369,84.336,7.16119757]
[1771001300008,10.39729122,84.36,84.336,7.16119757]
[1771001300408,22.2513303,84.36,84.336,7.16119757]
[1771001300610,22.2513303,84.36,84.336,5.66143994]
[1771001300810,10.39729122,84.35,84.336,5.66143994]
[1771001301317,22.2513303,84.36,84.336,5.66143994]
[1771001301727,1.42767644,84.349,84.336,3.85723972]
[1771001302426,1.42767644,84.349,84.33,0.1]
[1771001302427,10.39729122,84.34,84.33,0.1]
[1771001302723,11.85583867,84.347,84.33,0.1]
[1771001302928,47.40496032,84.38,84.33,0.1]
[1771001302929,10.39729122,84.37,84.331,1.53230154]
[1771001303135,10.39729122,84.36,84.33,0.1]
[1771001303309,10.39729122,84.36,84.31,0.1]
[1771001303310,10.39729122,84.34,84.31,0.1]
[1771001303509,10.39729122,84.33,84.31,0.1]
[1771001303730,10.39729122,84.33,84.311,1.53230154]
[1771001304322,10.39729122,84.35,84.311,1.53230154]
[1771001304522,10.39729122,84.35,84.312,1.53230154]
[1771001304935,44.0,84.359,84.314,1.53230154]
[1771001304936,10.39729122,84.34,84.314,1.53230154]
[1771001305230,11.85424026,84.358,84.314,1.53230154]
[1771001305231,41.48984091,84.358,84.314,1.53230154]
[1771001305407,44.0,84.359,84.314,1.53230154]
[1771001305607,55.85412175,84.359,84.321,1.53230154]
[1771001306108,11.85269591,84.369,84.331,1.53230154]
[1771001306528,10.39729122,84.36,84.331,1.53230154]
[1771001306935,11.85409974,84.359,84.331,1.53230154]
[1771001307131,10.39729122,84.35,84.331,1.53230154]
[1771001307545,10.39729122,84.34,84.323,1.53230154]
[1771001307740,41.48934909,84.359,84.323,1.53230154]
[1771001307741,11.85409974,84.359,84.323,1.53230154]
[1771001307914,10.39729122,84.35,84.324,1.53230154]
[1771001308115,10.39729122,84.33,84.31,0.1]
[1771001308420,41.48934909,84.359,84.31,0.1]
[1771001308421,10.39729122,84.34,84.31,1.63230154]
[1771001308619,10.39729122,84.33,84.31,1.63230154]
[1771001310034,10.39729122,84.32,84.31,0.1]
[1771001310232,11.85831683,84.329,84.303,1.53230154]
[1771001311449,10.39729122,84.34,84.305,1.53230154]
[1771001311640,10.39729122,84.33,84.305,1.53230154]
[1771001312432,41.51888267,84.344,84.3,0.1]
[1771001312433,10.39729122,84.32,84.3,0.1]
[1771001312846,10.39729122,84.31,84.288,1.53230154]
[1771001313034,10.39729122,84.32,84.29,1.53230154]
[1771001313527,10.39729122,84.31,84.284,11.86451872]
[1771001313850,10.39729122,84.31,84.284,13.39682026]
[1771001314049,10.39729122,84.32,84.285,1.53230154]
[1771001314437,10.39729122,84.33,84.291,1.53230154]
[1771001314642,11.85719197,84.337,84.291,1.53230154]
[1771001314947,10.39729122,84.34,84.301,1.53230154]
[1771001315125,11.8569108,84.339,84.301,1.53230154]
[1771001315327,10.39729122,84.33,84.301,1.53230154]
[1771001315528,10.39729122,84.32,84.301,1.53230154]
[1771001316025,10.39729122,84.31,84.28,39.64]
[1771001316225,10.39729122,84.32,84.28,50.03729122]
[1771001316441,10.39729122,84.31,84.281,11.86507041]
[1771001317958,10.39729122,84.3,84.274,1.51249458]
[1771001318548,11.86112989,84.309,84.254,1.51249458]
[1771001318549,1.4584509,84.289,84.254,1.51249458]
[1771001318733,10.39729122,84.3,84.261,1.51249458]
[1771001319334,10.39729122,84.29,84.261,1.51249458]
[1771001319749,10.39729122,84.28,84.257,39.66]
[1771001320083,10.39729122,84.28,84.258,1.51249458]
[1771001320357,22.26121566,84.29,84.259,1.51249458]
[1771001322128,10.39729122,84.28,84.258,1.51249458]
[1771001322832,22.26121566,84.29,84.259,1.51249458]
[1771001323047,4.61729252,84.32,84.258,11.86830924]
[1771001323048,1.4584509,84.302,84.261,1.51249458]
[1771001323244,29.65158253,84.313,84.261,1.51249458]
[1771001323245,10.39729122,84.3,84.261,1.51249458]
[1771001323960,10.39729122,84.29,84.261,1.51249458]
[1771001324260,10.39729122,84.29,84.263,1.51249458]
[1771001324549,10.39729122,84.3,84.263,1.51249458]
[1771001324736,1.4584509,84.302,84.263,1.51249458]
[1771001324737,10.39729122,84.29,84.263,1.51249458]
[1771001325560,10.39729122,84.28,84.263,1.51249458]
[1771001325852,1.4584509,84.29,84.263,1.51249458]
[1771001325853,10.39729122,84.29,84.263,1.51249458]
[1771001326448,10.39729122,84.28,84.263,1.51249458]
[1771001326752,10.39729122,84.28,84.253,69.39250576]
[1771001326753,10.39729122,84.28,84.257,11.86838129]
[1771001326936,10.39729122,84.28,84.257,13.38087587]
[1771001327137,10.39729122,84.28,84.258,1.51249458]
[1771001328258,10.39729122,84.3,84.261,1.51249458]
[1771001328759,10.39729122,84.29,84.263,1.51249458]
[1771001328937,11.86253692,84.299,84.263,1.51249458]
[1771001329545,10.39729122,84.29,84.263,1.51249458]
[1771001330055,11.86253692,84.299,84.263,1.51249458]
[1771001330262,10.39729122,84.3,84.265,1.51249458]
[1771001330847,10.39729122,84.3,84.264,39.78]
[1771001330848,11.85986384,84.318,84.271,1.51249458]
[1771001331038,10.39729122,84.31,84.271,1.51249458]
[1771001331342,10.39729122,84.31,84.266,41.53513872]
[1771001331343,54.43729122,84.32,84.281,1.51249458]
[1771001331546,10.39729122,84.32,84.281,1.51249458]
[1771001331762,11.85972319,84.319,84.281,1.51249458]
[1771001332256,10.39729122,84.33,84.301,1.51249458]
[1771001333166,10.39729122,84.32,84.301,1.51249458]
[1771001334243,10.39729122,84.32,84.28,10.39729122]
[1771001334244,10.39729122,84.31,84.282,1.51249458]
[1771001335145,10.39729122,84.33,84.291,1.51249458]
[1771001337262,11.85831683,84.329,84.292,11.86352204]
[1771001337568,10.39729122,84.32,84.293,1.51249458]
[1771001337864,11.85831683,84.329,84.293,1.51249458]
[1771001338161,10.39729122,84.32,84.293,1.51249458]
[1771001338457,13.28541198,84.329,84.293,1.51249458]
[1771001338656,10.39729122,84.33,84.293,1.51249458]
[1771001339056,10.39729122,84.33,84.294,1.51249458]
[1771001339643,11.85831683,84.329,84.296,1.51249458]
[1771001340042,10.39729122,84.32,84.296,1.51249458]
[1771001341071,1.37781746,84.319,84.293,39.86]
[1771001341267,10.39729122,84.3,84.271,1.4523493]
[1771001341570,10.39729122,84.3,84.272,39.9]
[1771001341771,10.39729122,84.3,84.272,41.3523493]
[1771001341959,44.04,84.323,84.29,10.39729122]
[1771001342161,44.04,84.323,84.291,1.4523493]
[1771001342351,10.39729122,84.33,84.293,1.4523493]
[1771001342550,11.85810265,84.331,84.293,1.4523493]
[1771001342756,10.39729122,84.32,84.293,1.4523493]
[1771001342955,13.23754065,84.319,84.293,1.4523493]
[1771001343160,1.37781746,84.318,84.286,1.4523493]
[1771001343368,11.85972319,84.319,84.286,1.4523493]
[1771001344170,10.39729122,84.31,84.286,1.4523493]
[1771001344356,11.85972319,84.319,84.286,1.4523493]
[1771001345776,1.37352226,84.326,84.291,1.4523493]
[1771001346070,10.39729122,84.32,84.291,1.4523493]
[1771001346270,11.76403107,84.32,84.291,1.4523493]
[1771001346578,1.36673985,84.32,84.291,1.4523493]
[1771001346868,1.36001183,84.319,84.291,1.4523493]
[1771001347582,1.36001183,84.319,84.181,25.71138454]
[1771001347583,22.25971512,84.3,84.278,39.92]
[1771001348574,22.25971512,84.3,84.279,1.4523493]
[1771001348759,1.37781746,84.335,84.291,1.4523493]
[1771001349071,10.39729122,84.31,84.28,1.4523493]
[1771001349256,1.37781746,84.309,84.28,1.4523493]
[1771001349461,10.39729122,84.3,84.28,1.4523493]
[1771001349775,22.25969146,84.3,84.28,1.4523493]
[1771001350472,11.86240024,84.3,84.28,1.4523493]
[1771001350672,13.23917723,84.308,84.276,1.4523493]
[1771001351255,3.49,85.574,84.275,11.86589338]
[1771001351256,10.39729122,84.33,84.291,1.4523493]
[1771001351451,11.85789498,84.332,84.301,1.4523493]
[1771001351665,10.39729122,84.33,84.301,1.4523493]
[1771001351968,10.39729122,84.33,84.302,13.31446407]
[1771001352174,10.39729122,84.33,84.303,1.4523493]
[1771001352877,10.43561834,84.33,84.303,1.4523493]
[1771001353373,1.37781746,84.342,84.311,1.4523493]
[1771001353552,10.43561834,84.34,84.311,1.4523493]
[1771001353756,1.37781746,84.342,84.311,1.4523493]
[1771001353961,11.85588586,84.347,84.321,1.4523493]
[1771001354257,11.85588586,84.347,84.304,41.51641677]
[1771001354258,1.37781746,84.339,84.305,1.4523493]
[1771001354653,1.37781746,84.339,84.311,1.4523493]
[1771001355269,10.43561834,84.33,84.303,1.4523493]
[1771001355475,10.43561834,84.33,84.304,1.4523493]
[1771001355677,1.37781746,84.337,84.304,1.4523493]
[1771001356071,10.43561834,84.34,84.311,1.4523493]
[1771001356266,11.85670814,84.341,84.311,1.4523493]
[1771001356488,1.37781746,84.354,84.321,1.4523493]
[1771001356799,1.37781746,84.349,84.321,1.4523493]
[1771001357157,1.37781746,84.349,84.303,81.55681773]
[1771001357158,1.37781746,84.357,84.331,1.4523493]
[1771001357593,11.85452131,84.356,84.331,1.4523493]
[1771001357859,1.37781746,84.355,84.331,1.4523493]
[1771001358666,13.23249961,84.355,84.332,11.85789498]
[1771001358866,13.23249961,84.355,84.331,1.4523493]
[1771001359581,10.43561834,84.35,84.324,40.06]
[1771001359886,1.37781746,84.349,84.324,40.06]
[1771001360070,1.37781746,84.339,84.324,40.06]
[1771001360683,13.23481325,84.339,84.324,40.06]
[1771001360904,13.23481325,84.339,84.314,11.86033052]
[1771001360905,1.37781746,84.339,84.314,11.86033052]
[1771001361195,1.37781746,84.339,84.315,1.4523493]
[1771001361580,1.37781746,84.339,84.309,40.08]
[1771001361581,1.37781746,84.337,84.309,40.08]
[1771001361781,1.37781746,84.337,84.303,1.4523493]
[1771001362778,59.27381348,84.355,84.302,40.1]
[1771001362779,11.85606734,84.345,84.313,1.4523493]
[1771001363165,11.85424026,84.358,84.321,1.4523493]
[1771001363766,11.85424026,84.358,84.331,1.4523493]
[1771001364081,1.37781746,84.357,84.331,1.4523493]
[1771001364581,1.37781746,84.357,84.318,1.4523493]
[1771001364782,1.37781746,84.339,84.314,40.1]
[1771001364966,11.85564565,84.348,84.316,1.4523493]
[1771001366176,11.85564565,84.348,84.318,1.4523493]
[1771001366578,11.85489938,84.354,84.321,1.4523493]
[1771001367185,1.37781746,84.377,84.341,1.4523493]
[1771001367390,10.43561834,84.37,84.341,1.4523493]
[1771001368087,1.37781746,84.369,84.341,1.4523493]
[1771001368393,11.85283519,84.368,84.341,1.4523493]
[1771001369503,2.47215037,105.53,84.333,1.4523493]
[1771001369504,11.8134358,84.36,84.333,1.4523493]
[1771001369675,1.37781746,84.359,84.333,1.4523493]
[1771001370883,1.32708557,84.365,84.333,1.4523493]
[1771001371490,11.85339718,84.364,84.336,1.31788458]
[1771001372699,1.32708557,84.359,84.331,11.85794521]
[1771001372874,1.32708557,84.359,84.332,1.31788458]
[1771001373074,11.85339718,84.364,84.332,1.31788458]
[1771001374592,1.32708557,84.368,84.334,1.31788458]
[1771001374895,11.85297568,84.367,84.334,1.31788458]
[1771001375071,13.18006125,84.367,84.334,1.31788458]
[1771001375268,1.32708557,84.384,84.351,1.31788458]
[1771001375696,1.32708557,84.379,84.351,1.31788458]
[1771001375894,41.47558272,84.387,84.351,1.31788458]
[1771001375895,10.43561834,84.37,84.351,1.31788458]
[1771001376199,1.32708557,84.373,84.351,1.31788458]
[1771001376498,1.32708557,84.369,84.34,11.75350292]
[1771001376695,1.32708557,84.369,84.341,13.17451421]
[1771001376994,1.37476285,84.379,84.351,1.41523226]
[1771001377198,1.37476285,84.369,84.34,1.41523226]
[1771001377712,1.37476285,84.369,84.339,52.09677287]
[1771001377713,1.37476285,84.379,84.35,11.8508506]
[1771001377918,1.37476285,84.379,84.35,1.41523226]
[1771001378578,11.85143046,84.378,84.35,1.41523226]
[1771001378780,1.37476285,84.369,84.341,40.32]
[1771001379401,1.37476285,84.369,84.342,1.41523226]
[1771001379900,1.37476285,84.369,84.335,1.41523226]
[1771001380977,1.37476285,84.367,84.335,1.41523226]
[1771001381883,1.37476285,84.367,84.341,1.41523226]
[1771001382698,13.22787903,84.366,84.341,1.41523226]
[1771001383305,1.37476285,84.365,84.332,13.27311217]
[1771001383504,1.37476285,84.365,84.333,1.41523226]
[1771001384501,13.22816003,84.364,84.335,1.41523226]
[1771001384703,1.37476285,84.363,84.335,1.41523226]
[1771001385200,1.37476285,84.359,84.329,40.36]
[1771001386115,1.37476285,84.359,84.321,1.41523226]
[1771001386406,1.37476285,84.349,84.318,1.41523226]
[1771001386587,1.37476285,84.347,84.318,1.41523226]
[1771001388606,1.37476285,84.345,84.317,40.38]
[1771001388812,11.85592677,84.346,84.321,1.41523226]
[1771001389108,11.85523911,84.351,84.321,1.41523226]
[1771001389881,1.37476285,84.35,84.321,1.41523226]
[1771001391508,10.43561834,84.36,84.323,1.41523226]
[1771001391509,1.37476285,84.357,84.323,1.41523226]
[1771001392087,10.43561834,84.38,84.341,1.41523226]
[1771001392286,1.37476285,84.379,84.343,1.41523226]
[1771001393398,1.37476285,84.367,84.344,1.41523226]
[1771001393598,1.37476285,84.367,84.337,1.41523226]
[1771001393797,10.43561834,84.35,84.33,40.46]
[1771001393997,1.37476285,84.349,84.321,40.48]
[1771001394205,1.37476285,84.349,84.322,1.41523226]
[1771001394609,1.37476285,84.349,84.323,1.41523226]
[1771001394916,1.37476285,84.359,84.323,1.41523226]
[1771001395917,1.37476285,84.349,84.323,1.41523226]
[1771001396599,11.85424026,84.358,84.331,1.41523226]
[1771001396807,1.37476285,84.365,84.331,1.41523226]
[1771001396808,11.85360162,84.363,84.331,1.41523226]
[1771001397910,11.85269471,84.369,84.333,1.41523226]
[1771001398615,13.22745756,84.369,84.333,1.41523226]
[1771001400318,1.37476285,84.368,84.335,1.41523226]
[1771001401210,1.37476285,84.368,84.337,1.37870277]
[1771001402720,1.30648951,84.366,84.339,1.37870277]
[1771001403303,1.30648951,84.359,84.333,1.37870277]
[1771001403513,1.30648951,84.359,84.335,1.37870277]
[1771001403713,1.30648951,84.366,84.335,1.37870277]
[1771001404811,1.30648951,84.366,84.334,11.85761377]
[1771001404812,11.85220034,84.373,84.337,1.37870277]
[1771001404996,11.85220034,84.373,84.341,1.37870277]
[1771001405195,3.8924838,84.38,84.351,1.37870277]
[1771001405397,1.30648951,84.379,84.351,1.37870277]
[1771001405802,1.30648951,84.379,84.341,1.37870277]
[1771001406321,1.30648951,84.386,84.351,1.37870277]
[1771001407004,1.30648951,84.379,84.353,1.37870277]
[1771001408500,3.8924838,84.38,84.353,1.37870277]
[1771001409201,1.30648951,84.379,84.355,1.37870277]
[1771001410312,1.30648951,84.378,84.347,1.37870277]
[1771001410512,3.8924838,84.37,84.347,1.37870277]
[1771001410813,44.46,84.391,84.351,1.37870277]
[1771001410814,1.30648951,84.389,84.351,1.37870277]
[1771001411017,1.30648951,84.379,84.351,1.37870277]
[1771001411206,1.30648951,84.379,84.353,1.37870277]
[1771001411898,13.15791575,84.379,84.353,1.37870277]
[1771001412098,1.30648951,84.378,84.353,1.37870277]
[1771001412324,5.19897331,84.36,84.339,1.37870277]
[1771001412533,5.19897331,84.36,84.34,40.66]
[1771001412923,1.30648951,84.359,84.34,40.66]
[1771001413505,44.46,84.389,84.321,1.37870277]
[1771001413506,3.8924838,84.35,84.321,1.37870277]
[1771001413828,3.8924838,84.35,84.323,1.37870277]
[1771001414025,1.30648951,84.357,84.323,1.37870277]
[1771001414706,1.30648951,84.349,84.323,1.37870277]
[1771001415438,3.89407209,84.34,84.323,1.37870277]
[1771001415727,3.89407209,84.34,84.324,11.85901997]
[1771001416130,1.30648951,84.349,84.324,11.85901997]
[1771001416422,1.30648951,84.349,84.325,1.37870277]
[1771001416626,3.89407209,84.36,84.325,1.37870277]
[1771001416825,3.89407209,84.38,84.341,1.37870277]
[1771001417121,1.30648951,84.384,84.351,1.37870277]
[1771001417421,1.30648951,84.384,84.35,3.89407209]
[1771001417422,1.30648951,84.384,84.353,1.37870277]
[1771001417658,1.30648951,84.394,84.361,1.37870277]
[1771001417926,1.30648951,84.389,84.361,1.37870277]
[1771001418926,1.30648951,84.389,84.362,11.85367819]
[1771001419228,1.30648951,84.389,84.362,13.23238096]
[1771001419431,1.30648951,84.379,84.351,1.37870277]
[1771001419607,3.89407209,84.39,84.351,1.37870277]
[1771001419806,1.30648951,84.394,84.361,1.37870277]
[1771001420408,0.2,84.4,84.37,3.89407209]
[1771001420620,4.09407209,84.4,84.372,1.37870277]
[1771001421321,0.2,84.4,84.374,1.37870277]
[1771001421544,1.30648951,84.398,84.374,1.37870277]
[1771001422438,0.2,84.4,84.374,1.37870277]
[1771001422746,4.09407209,84.4,84.374,1.37870277]
[1771001423422,4.09407209,84.4,84.376,1.37870277]
[1771001424945,1.30648951,84.437,84.392,1.37870277]
[1771001425124,1.30648951,84.437,84.401,1.37870277]
[1771001425325,1.30648951,84.437,84.404,1.37870277]
[1771001425526,3.89407209,84.42,84.399,11.84845828]
[1771001425726,3.89407209,84.42,84.4,1.37870277]
[1771001425927,1.30648951,84.429,84.401,1.37870277]
[1771001426128,1.30648951,84.439,84.401,1.37870277]
[1771001427447,1.30648951,84.455,84.421,1.37870277]